Cogmind - Beta 13 @@@ ROGUE MODE // 2024.06.01 @ 19:27:06 Player: Sionnis Result: Destroyed by D-53 Grenadier with Mini Grenade Launcher Performance ------------- Evolutions (0) 0 Regions Visited (2) 400 Robots Destroyed (34) 170 Value Destroyed (558) 558 Prototype IDs (0) 0 Alien Tech Used (0) 0 Bonus (4) 4 TOTAL SCORE: 1132 Bonus ------- High Alert Combat Kills 12 Friendly Fire -8 Cogmind --------- Core Integrity 0/250 Matter 254/300 Energy 100/100 System Corruption 0% Temperature Cool (0) Movement Rolling (110) Ox2 Location -10/Mines Parts ------- > --- POWER (1) -------- (None) > --- PROPULSION (2) --- Wheel > --- UTILITY (2) ------ Large Storage Unit > --- WEAPON (2) ------- Shotgun Shotgun > --- INVENTORY (15) --- Ion Engine Wheel Wheel Wheel Large Storage Unit Structural Scanner Shotgun Shotgun Datajack Peak State ------------ > --- POWER ------------ Light Ion Engine > --- PROPULSION ------- Wheel Wheel > --- UTILITY ---------- Large Storage Unit Core Shielding > --- WEAPON ----------- Shotgun Shotgun > --- INVENTORY -------- Ion Engine Light Ion Engine Wheel Wheel Wheel Wheel Wheel Large Storage Unit Structural Scanner Shotgun Shotgun Shotgun Shotgun Shotgun Datajack [Rating: 11] Favorites ----------- Power Light Ion Engine Engine Light Ion Engine Propulsion Wheel Wheel Wheel Utility Large Storage Unit Storage Large Storage Unit Protection Core Shielding Weapon Shotgun Ballistic Gun Shotgun Build | -11 -10 -10 ------- Run | Yrd Mat Min Slots Evolved . | . . . Power . | . . . Propulsion . | . . . Utility . | . . . Weapon . | . . . Parts Attached 21 | 3 11 7 Power 4 | 1 1 2 Engine 4 | 1 1 2 Core . | . . . Reactor . | . . . Propulsion 5 | 2 1 2 Treads . | . . . Leg . | . . . Wheel 5 | 2 1 2 Hover . | . . . Flight . | . . . Utility 2 | . 2 . Device . | . . . Storage 1 | . 1 . Processor . | . . . Hackware . | . . . Protection 1 | . 1 . Artifact . | . . . Weapon 10 | . 7 3 Energy Gun . | . . . Energy Cannon . | . . . Ballistic Gun 10 | . 7 3 Ballistic Cannon . | . . . Launcher . | . . . Special Weapon . | . . . Impact Weapon . | . . . Slashing Weapon . | . . . Piercing Weapon . | . . . Special Melee Weapon . | . . . Unidentified Prototypes . | . . . Parts Lost 9 | . . 9 Power 2 | . . 2 Propulsion 3 | . . 3 Utility 1 | . . 1 Weapon 3 | . . 3 Highest Loss Streak 5 | . . 5 To Critical Strikes . | . . . Average Slot Usage (%) 89 | . 89 89 Engine 13 | . 14 11 Wheel 26 | . 28 20 Storage 12 | . 12 14 Protection 7 | . 6 14 Ballistic Gun 27 | . 26 28 Naked Turns . | . . . Heaviest Build 30 | 3 30 30 Greatest Support 20 | 20 20 20 Greatest Overweight (x) 1 | . 1 1 Average Overweight (x) . | . . 1 Largest Inventory Capacity 15 | 5 15 15 Average Capacity 13 | 5 13 15 Most Carried 15 | . 15 15 Average Carried 10 | . 10 12 Final Capacity 15 | 5 15 15 Final Carried 15 | . 15 9 Class Distribution -------------------- 100% | Mutant Dominant Class ---------------- Mutant | -10/Materials Mutant | -10/Mines Resources | -11 -10 -10 ----------- Run | Yrd Mat Min Matter Collected 943 | 134 568 241 Remotely . | . . . Salvage Created 922 | . 763 159 Parts 64 | . 57 7 Haulers Intercepted 2 | . 2 . Recyclers Shooed 1 | . 1 . Parts Field Recycled . | . . . Retrieved Matter . | . . . Parts Self-Destructed . | . . . Prevented . | . . . Kills | -11 -10 -10 ------- Run | Yrd Mat Min Combat Hostiles Destroyed 30 | . 18 12 Guns 30 | . 18 12 Classes Destroyed 11 | . 9 2 Worker 3 | . 2 1 Builder 1 | . 1 . Tunneler 1 | . 1 . Hauler 2 | . 2 . Recycler 2 | . 2 . Operator 2 | . 2 . Watcher 1 | . 1 . Swarmer 12 | . 9 3 Grunt 9 | . 9 . Demolisher 1 | . . 1 Assembled 8 | . . 8 Best Kill Streak 10 | . 7 10 Combat Bots Only 10 | . 7 10 Max Kills in Single Turn 3 | . 2 3 Gunslinging 1 | . 1 . Exploded . | . . . Melee . | . . . Uniques/NPCs Destroyed . | . . . Combat | -11 -10 -10 -------- Run | Yrd Mat Min Hostile Shots Fired 86 | . 38 48 Missed 20 | . 14 6 Damage Taken 1173 | . 228 945 Core 267 | . 36 231 Absorbed by Shields . | . . . Redirected to Shielding 37 | . 3 34 Core Remaining (%) 100 | 100 . . Volleys Fired 78 | . 47 31 Largest 2 | . 2 2 Hottest 46 | . 46 46 Shots Fired 156 | . 94 62 Gun 156 | . 94 62 Cannon . | . . . Launcher . | . . . Special . | . . . Kinetic 156 | . 94 62 Thermal . | . . . Explosive . | . . . Electromagnetic . | . . . Robot Hit Streak 8 | . 7 8 Robot Miss Streak 6 | . 3 6 Penetration Max . | . . . Secondary Targets 2 | . 1 1 Max Gunslinging Chain 1 | . 1 1 Shots Hit Robots 116 | . 69 47 Core Hits 73 | . 47 26 Critical Kills 1 | . 1 . Critical Parts Destroyed 2 | . 1 1 Critical Strikes 3 | . 2 1 Destroy 3 | . 2 1 Melee Attacks . | . . . Impact . | . . . Slashing . | . . . Piercing . | . . . Sneak Attacks . | . . . Combat Hostiles . | . . . Follow-up Attacks . | . . . Damage Inflicted 1795 | . 1058 737 Guns 1795 | . 1058 737 Cannons . | . . . Explosions . | . . . Melee . | . . . Ramming . | . . . Kinetic 1795 | . 1058 737 Thermal . | . . . Explosive . | . . . Electromagnetic . | . . . Impact . | . . . Slashing . | . . . Piercing . | . . . Highest Corruption . | . . . Average Corruption . | . . . Corruption Purged . | . . . Corruption Blocked . | . . . Overload Shots . | . . . Overflow Damage . | . . . Projectiles . | . . . Explosions . | . . . Melee . | . . . Knockbacks . | . . . Impact . | . . . Kinetic . | . . . Secondary . | . . . Self-Inflicted Damage . | . . . Shots . | . . . Rammed . | . . . Targets Rammed . | . . . Kicked . | . . . Crushed . | . . . Highest Temperature 50 | . 10 50 Average Temperature 8 | . 1 15 Received Heat Transfer 260 | . 72 188 Siege Activations . | . . . Robots Corrupted . | . . . Combat Hostiles . | . . . Parts Fried . | . . . Impact Corruptions . | . . . Robots Melted . | . . . Combat Hostiles . | . . . Parts Melted . | . . . Heat Transferred . | . . . Parts Sabotaged . | . . . Parts Stolen . | . . . Parts Stripped . | . . . Power Chain Reactions . | . . . Alert | -11 -10 -10 ------- Run | Yrd Mat Min Peak Influence 462 | . 462 265 Initial 180 | . . 180 Average 225 | . 230 231 Maximum Alert Level 2 | . 2 1 Low Security (%) 41 | 100 48 1 Level 1 49 | . 39 98 Level 2 9 | . 11 . Level 3 . | . . . Level 4 . | . . . Level 5 . | . . . High Security . | . . . Max Security . | . . . Squads Dispatched 6 | . 6 . Investigation 5 | . 5 . Extermination . | . . . Reinforcement 1 | . 1 . Assault . | . . . Garrison . | . . . Intercept . | . . . Searches Triggered . | . . . Construction Impeded . | . . . Haulers Reinforced . | . . . Active Scanning Responses . | . . . Cargo Convoy Interrupts . | . . . Stealth | -11 -10 -10 --------- Run | Yrd Mat Min Distress Signals . | . . . Communications Jammed . | . . . Distress Signals . | . . . Times Spotted 50 | . 27 23 Peak Tracking Total 12 | . 7 12 Tactical Retreats 3 | . 1 2 Traps | -11 -10 -10 ------- Run | Yrd Mat Min Traps Triggered 6 | . 6 . Indirectly . | . . . Trap Hack Attempts . | . . . Triggered . | . . . Disarmed . | . . . Reprogrammed . | . . . Reused . | . . . Traps Extracted . | . . . Installed . | . . . Triggered . | . . . Machines | -11 -10 -10 ---------- Run | Yrd Mat Min Machines Disabled . | . . . Max in Single Turn . | . . . Machines Repaired . | . . . Machines Dismantled . | . . . Machines Sabotaged . | . . . Overloaded Fab Kills . | . . . Hacking | -11 -10 -10 --------- Run | Yrd Mat Min Machines Accessed 6 | . 6 . Terminals 6 | . 6 . Fabricators . | . . . Repair Stations . | . . . Recycling Units . | . . . Scanalyzers . | . . . Garrison Access . | . . . Total Hacks 18 | . 18 . Successful 5 | . 5 . Failed 13 | . 13 . Catastrophic . | . . . Database Lockouts . | . . . Manual 17 | . 17 . Terminals 18 | . 18 . Fabricators . | . . . Repair Stations . | . . . Recycling Units . | . . . Scanalyzers . | . . . Garrison Access . | . . . Terminal Hacks 5 | . 5 . Robot Analysis 3 | . 3 . Dispatch Records 1 | . 1 . Hauler Manifests 1 | . 1 . Fabricator Hacks . | . . . Repair Station Hacks . | . . . Recycling Unit Hacks . | . . . Scanalyzer . | . . . Garrison Access Hacks . | . . . Unauthorized Hacks . | . . . Terminals . | . . . Fabricators . | . . . Repair Stations . | . . . Recycling Units . | . . . Scanalyzers . | . . . Garrison Access . | . . . Data Cores Recovered . | . . . Used . | . . . Hacking Detections 6 | . 6 . Full Trace Events 4 | . 4 . Feedback Events . | . . . Feedback Blocked . | . . . Robot Schematics Acquired . | . . . Robots Built . | . . . Authchips . | . . . Time . | . . . Total Robot Build Rating . | . . . Part Schematics Acquired . | . . . Parts Built . | . . . Authchips . | . . . Time . | . . . Total Part Build Rating . | . . . Parts Repaired . | . . . Time . | . . . Parts Recycled . | . . . Recycled Matter . | . . . Retrieved Matter . | . . . Retrieved Components . | . . . Parts Scanalyzed . | . . . Part Schematics Acquired . | . . . Parts Damaged . | . . . Bothacking | -11 -10 -10 ------------ Run | Yrd Mat Min Used RIF Installer . | . . . Robots Hacked . | . . . Non-combat . | . . . Combat . | . . . Robot Hacks Applied . | . . . Relay Couplers Released . | . . . Fabnet Peak Effective % . | . . . Robots Rewired . | . . . Allies Hacked . | . . . Hacks Repelled . | . . . Allies | -11 -10 -10 -------- Run | Yrd Mat Min Total Allies . | . . . Largest Group . | . . . Highest-Rated Group . | . . . Highest-Rated Ally . | . . . Total Orders . | . . . Ally Attacks . | . . . Total Damage . | . . . Kills . | . . . Allies Corrupted . | . . . Allies Melted . | . . . Intel | -11 -10 -10 ------- Run | Yrd Mat Min Robot Analysis Total 3 | . 3 . Derelict Logs Recovered 1 | . . 1 Drone Launches . | . . . Drone Recoveries . | . . . Exploration | -11 -10 -10 ------------- Run | Yrd Mat Min Turns Passed 947 | 21 759 167 Spaces Moved 663 | 23 572 68 Core 4 | 4 . . Treads . | . . . Legs . | . . . Wheels 659 | 19 572 68 Hover . | . . . Flight . | . . . Fastest Speed 50 | 50 80 95 Average Speed 92 | 74 93 95 Slowest Speed 95 | 80 95 95 Overloaded Moves . | . . . Propulsion Burnouts . | . . . Robots Hopped . | . . . Cave-ins Triggered . | . . . Exploration Rate (%) 38 | 3 90 21 Regions Visited 2 Branch Regions 1 Pre-discovered Areas . | . . . Known Exits Taken . | . . . Unknown Exits Taken 2 | 1 1 . Scrap Searched . | . . . Spaces Dug . | . . . Terrain Destroyed . | . . . Melee . | . . . Projectile . | . . . AOE . | . . . Terrain Rammed . | . . . Walls Destroyed . | . . . Machines Disabled . | . . . Actions | -11 -10 -10 --------- Run | Yrd Mat Min Total 834 | 25 699 110 Wait 56 | . 53 3 Move 661 | 22 571 68 Hop . | . . . Pick Up 15 | . 15 . Fast Attach 12 | 3 9 . Attach 6 | . . 6 Detach . | . . . Swap 3 | . 2 1 Drop 3 | . 2 1 Fire 78 | . 47 31 Melee . | . . . Ram . | . . . Kick . | . . . Crush . | . . . Escape Stasis . | . . . Rewire . | . . . Trap . | . . . Miscellaneous . | . . . Route ------- -11/Scrapyard -10/Materials (discovered 4 exits: [*Mat x3] / [*Min]) -10/Mines History --------- Turn | Location | Event 8 | -11/Scrapyard | Discovered new exit (range 15) 22 | -11/Scrapyard | Entered Materials 141 | -10/Materials | Discovered new exit (range 5) 301 | -10/Materials | Build established: Mutant 414 | -10/Materials | Discovered new exit (range 14) 528 | -10/Materials | Discovered new exit (range 8) 714 | -10/Materials | Discovered new exit (range 16) 724 | -10/Materials | Destroyed 7 combat bots 781 | -10/Materials | Entered Mines 782 | -10/Mines | Assembled infested the area 787 | -10/Mines | Assisted by a Guerilla fighting off Assembled 816 | -10/Mines | Met a Derelict bent on vengeance 880 | -10/Mines | Lost 5 parts (1p2n2w) 889 | -10/Mines | Destroyed 10 combat bots 900 | -10/Mines | Learned 2 Materials zone layouts 935 | -10/Mines | Core integrity fell below 50% 943 | -10/Mines | Core integrity fell below 20% 948 | -10/Mines | Destroyed by D-53 Grenadier with Mini Grenade Launcher Last Messages --------------- 00930_ K-01 Serf collects debris. 00930_ U-05 Engineer builds a Wall. 00930_ Shotgun destroyed. 00932_ The unstable cave ceiling collapses. 00932_ K-01 Serf destroyed. 00933_ The unstable cave ceiling collapses. 00934_ U-05 Engineer lays Concrete. 00935_ Wheel destroyed. 00935_ U-05 Engineer builds a Wall. 00938_ G-34 Mercenary destroyed. 00940_ The unstable cave ceiling collapses. 00940_ U-05 Engineer builds a Wall. 00940_ Lgt. Ion Engine destroyed. 00942_ Core Shielding destroyed. 00944_ The unstable cave ceiling collapses. 00944_ U-05 Engineer lays Concrete. 00944_ G-47 Trooper destroyed. 00945_ The unstable cave ceiling collapses. 00945_ U-05 Engineer lays Concrete. 00947_ R-06 Scavenger collects Lgt. Ion Engine. Map ----- +----------------------------------------------------+ | | | | | | | | | | | | | | | | | | | | | ???????????????????????????????????????????????? | | ???????????????????????????????????????????????? | | ????????????##?????????????????????????????????? | | ???????????## ##???????????????????????????????? | | ??????????## #????????"" ????????????????????? | | ??????????# ##???????""?????????????????????? | | ??????????# ##??????""?????????????????????? | | ???????????# #?????? ?????????????????????? | | ???????????## ####??? ?????????????????????? | | ????????????# # #### #?????????????????????? | | ????????????# ##### ###???????????????????? | | ????????????# #??# % ##??????????????????? | | ????????????#=#??##= % ##?????????????????? | | ???????##???#%#### ##????????????????? | | ???????# ####= [*# #????????????????? | | ???????# ####=[ % @ #????????????????? | | ???????# ### ## # #???????????????? | | ??????## =## dr #??????????????? | | ?????## """ ###### # u# ##??????????????? | | ????## """ #????## # #r ?????????????? | | ????# """ #?????### # # ###????????????? | | ????## ##???????## # # ##??????????????? | | ?????##### #?????????? # # #???????????????? | | ?????????## #?????????? #?# #???????????????? | | ?????????## #?###?????? #??? #???????????????? | | ?????????#" ## ##?????# #????#???????????????? | | ????????## #??????##????????????????????? | | ????????# #????????????????????????????? | | ????????# ##????????????????????????????? | | ????????## ####?????????????????????????????? | | ?????????# ##????????????????????????????????? | | ?????????# #?????????????????????????????????? | | ?????????# "#?????????????????????????????????? | | ?????????## ##?????????????????????????????????? | | ??????????# #??????????????????????????????????? | | ??????????# ##?????????????????????????????????? | | ??????????# "#?????????????????????????????????? | | ??????????# ###????????????????????????????????? | | ??????????# #????????????????????????????????? | | ??????????### #????????????????????????????????? | +----------------------------------------------------+ Best States ------------- Heat Dissipation 25 Energy Generation 10 Energy Capacity 125 Matter Stores 300 Matter Capacity 300 Sight Range 16 Terrain Scan Density 10 Core Shielding 20 Evasion (%) 44 Item Schematics ----------------- None Robot Schematics ------------------ None Fabricated ------------ Nothing Alien Tech Used ----------------- None Achievements -------------- None Challenges ------------ None Game ------ Seed gottagofast Manual? 1 Play Time 00:12:39 Cumulative 151.2 hours Start 2024.06.01 @ 19:16:20 End 2024.06.01 @ 19:27:06 Sessions 1 Manual Loads 0 Difficulty Rogue Special Mode None Game No. 143 Rogue 143 Adventurer 0 Explorer 0 Win Type - Total 8 Types 7/0/0/1/0/0/0/0/0 Lore% 67 Gallery% 78 Achievement% 62 Wizard Run 0 Options --------- Layout 1 ASCII 0 Keyboard 0 Movement Numpad Keybinds 0 Fullscreen 1 Font 24/Smallcaps Map View 50x35 Zoom Use 0% Tactical HUD 1 Map Filters NONE Filters NONE Steam 1 RUN: fa700b14-7210-4b57-be11-a4fb719a4964